[Event "Charlotte Spring IM-C 2023"]
[Site "Charlotte"]
[Date "2023.03.17"]
[Round "4.1"]
[White "Adamson, Robby"]
[Black "Yu, Jiangwei"]
[Result "1/2-1/2"]
[ECO "C41"]
[WhiteElo "2265"]
[BlackElo "2167"]
[Annotator "TA"]
[PlyCount "130"]
[EventDate "2023.03.14"]
[EventType "tourn"]
[EventCountry "USA"]
[SourceTitle "playchess.com"]
[Source "ChessBase"]
[SourceQuality "1"]
[TimeControl "5400+30"]

{[%evp 10,130,33,28,29,17,34,18,37,26,43,8,1,-36,-38,-37,-41,-43,-31,-40,-44,-50,-54,-51,-55,-47,-36,-39,0,0,-8,-30,-30,-30,-26,-26,-31,-48,-48,-64,-4,-4,5,3,0,11,47,53,56,67,68,75,69,50,52,52,52,50,45,52,67,10,10,0,0,0,24,0,0,0,0,0,0,0,93,14,37,37,37,37,37,24,24,24,118,130,187,171,296,296,296,296,289,289,289,159,159,159,159,0,8,8,59,0,0,0,159,166,194,59,59,0,0,0,0,0,0,0,0,0,0,0,0]} 1. e4 {[%emt 0:05:53]} d6 {[%emt 0:03:34]} 2. d4 {[%emt 0:00:10]} Nf6 {[%emt 0:00:05]} 3. Nc3 {[%emt 0:00:14]} e5 {[%emt 0:00:05]} 4. Nf3 {[%emt 0:00:23]} Nbd7 {[%emt 0:00:08]} 5. Bc4 {[%emt 0:00:05]} Be7 {[%emt 0:00:08]} 6. a4 {[%emt 0:00:12]} exd4 {[%emt 0:03:27] C41: Philidor Defence.} 7. Qxd4 {[%emt 0:02:54][%cal Oc4f7]} Nc5 {[%emt 0:01:00]} 8. O-O {[%emt 0:02:41]} O-O {[%emt 0:00:27]} 9. h3 {[%emt 0:06:59]} Be6 {[%emt 0:01:05]} 10. Bf4 {[%emt 0:02:16] [#]} Nfd7 $146 {[%emt 0:22:16]} ({Predecessor:} 10... Bxc4 11. Qxc4 Nfxe4 12. Nxe4 d5 13. Nf6+ gxf6 14. Qc3 Ne4 15. Qb3 Nc5 16. Qe3 Re8 {0-1 Pierecker,M (2160)-Kleibel,U (2163) AUT-chT2M 1415 2014 (4.2)}) 11. Bd5 {[%emt 0:22:48]} Bf6 {[%emt 0:16:25]} 12. Qd2 {[%emt 0:01:11]} Bxc3 {[%emt 0:07:45]} 13. Qxc3 {[%emt 0:07:00]} Qf6 {[%emt 0:00:40]} 14. Qxf6 {[%emt 0:16:13]} Nxf6 {[%emt 0:00:04]} 15. Bxe6 {[%emt 0:11:18]} Nxe6 {[%emt 0:00:26]} 16. e5 {[%emt 0:00:03]} Nxf4 {[%emt 0:00:15]} 17. exf6 {[%emt 0:00:04]} gxf6 {[%emt 0:00:06]} 18. a5 {[%emt 0:01:41]} d5 {[%emt 0:13:34]} 19. Ra4 {[%emt 0:01:32]} Ne6 {[%emt 0:00:38]} 20. Rd1 {[%emt 0:07:32]} Rad8 {[%emt 0:04:00]} 21. Rb4 {[%emt 0:01:26]} b6 {[%emt 0:00:43]} 22. axb6 {[%emt 0:00:09]} axb6 {[%emt 0:06:33]} 23. Rb5 {[%emt 0:00:27]} d4 $1 {[%emt 0:03:18]} 24. Kf1 {[%emt 0:01:43]} Rb8 {[%emt 0:02:38]} (24... Rd7 $15) 25. Rf5 $11 {[%emt 0:00:56]} c5 {[%emt 0:01:23]} 26. Rxf6 {[%emt 0:00:14]} Kg7 {[%emt 0:04:39]} 27. Rf5 {[%emt 0:00:04]} f6 {[%emt 0:01:42] Wards off Ne5} 28. Re1 {[%emt 0:02:28]} Nc7 {[%emt 0:00:24] [#]} 29. b4 $1 {[%emt 0:03:39]} Na6 {[%emt 0:02:26]} 30. bxc5 {[%emt 0:00:05]} bxc5 {[%emt 0:00:03]} 31. Ra1 {[%emt 0:00:08]} (31. Re6 $5 {[%cal Re6a6]} Rfe8 32. Rfxf6 $16 (32. Rxa6 $2 Rb1+)) 31... Rb6 {[%emt 0:00:50]} 32. Rd5 {[%emt 0:01:48]} Rf7 {[%emt 0:00:53]} 33. Nd2 {[%emt 0:01:19]} Rc6 {[%emt 0:01:54]} 34. Nb3 {[%emt 0:01:07]} Rfc7 {[%emt 0:00:42]} 35. Rc1 {[%emt 0:00:41]} (35. Ra5 $14) 35... Nb4 {[%emt 0:00:42]} 36. Rd8 {[%emt 0:00:04]} Ra6 {[%emt 0:00:38]} 37. Rb8 $1 {[%emt 0:00:32]} Ra2 {[%emt 0:02:23] [#]} (37... d3 $5 {[%cal Rb4a2]} 38. cxd3 Nxd3 $11) 38. Nxc5 $1 {[%emt 0:00:53]} Rxc5 {[%emt 0:00:03]} 39. Rxb4 {[%emt 0:00:06][%mdl 4096] Endgame KRR-KRR} d3 $1 {[%emt 0:00:04]} 40. c3 {[%emt 0:00:47]} Rc2 {[%emt 0:01:32][%cal Rc2c1]} 41. Rd1 {[%emt 0:00:11]} Ra5 {[%emt 0:00:41]} (41... R2xc3 42. Rd4 $16) (41... Rf5 $11 {keeps the balance.} 42. Rg4+ (42. Rxd3 Rfxf2+ 43. Ke1 Rxg2 $11) 42... Kf7) 42. Rd4 {[%emt 0:00:59]} (42. Rxd3 $2 Ra1+) ({White should try} 42. Kg1 $1 $16) 42... Rf5 {[%emt 0:00:31]} (42... Raa2 $5 {[%cal Rc2f2]} 43. Kg1 (43. R1xd3 Rxf2+ 44. Ke1 Rxg2 $11) 43... Rxf2 44. Rg4+ (44. R4xd3 Rxg2+ 45. Kh1 Rh2+ 46. Kg1 Rag2+ 47. Kf1 Rf2+ 48. Kg1 Rhg2+ 49. Kh1 Kh6 $17) 44... Kf7 $11) 43. f4 {[%emt 0:00:31]} ({But not} 43. R1xd3 Rfxf2+ 44. Ke1 Rxg2 45. Rg4+ Rxg4 46. hxg4 Kg6 $11) 43... Rxc3 {[%emt 0:00:26]} 44. Kf2 {[%emt 0:00:28][%cal Of2g3]} Rc2+ {[%emt 0:00:22]} 45. Kf3 {[%emt 0:00:03]} Ra5 {[%emt 0:00:10]} (45... h5 {looks sharper.} 46. Rd7+ Kh6 47. Rd6 Kg7) 46. R1xd3 {[%emt 0:00:25]} Raa2 {[%emt 0:00:09]} (46... h5 $11 {remains equal.}) 47. g4 $1 $16 {[%emt 0:00:48]} Rg2 {[%emt 0:01:08]} (47... Kg6 $16 {might work better.}) 48. Rd7+ $18 {[%emt 0:00:29]} Kh6 {[%emt 0:00:48]} (48... Kg6 $142 49. f5+ Kh6) 49. R3d6 {[%emt 0:00:32][%cal Rd6f6]} Raf2+ {[%emt 0:00:17]} 50. Ke4 {[%emt 0:00:04][%cal Rd6f6]} Kg6 {[%emt 0:00:14]} 51. f5+ {[%emt 0:00:31]} Kg5 {[%emt 0:00:17]} 52. Rg7+ {[%emt 0:00:32]} ({White must play} 52. Rxh7 $18 {[%csl Gg4][%cal Rh7h5]} Re2+ 53. Kd5) 52... Kh6 $16 {[%emt 0:00:35] [#]} 53. Rdd7 {[%emt 0:01:02] White is more active.} (53. Rxf6+ $2 {perishes.} Kxg7 54. Rc6 Rg3 $19) 53... Re2+ {[%emt 0:00:16]} 54. Kf3 $2 {[%emt 0:00:34]} ({White has to play} 54. Kd5 $16) 54... Ref2+ {[%emt 0:00:06]} 55. Ke3 {[%emt 0:00:11]} Re2+ {[%emt 0:00:10]} 56. Kf4 {[%emt 0:00:02]} (56. Kd4 $14 Rd2+ 57. Kc5 Rxd7 58. Rxd7) 56... Ref2+ $11 {[%emt 0:01:26]} 57. Ke4 $2 {[%emt 0:00:17]} (57. Ke3 $11 Re2+ 58. Kf4 Rgf2+ 59. Kg3 Rg2+ 60. Kh4) 57... Re2+ $16 {[%emt 0:00:04]} 58. Kd5 {[%emt 0:00:28][%cal Od5d6] Hoping for Kd6!} Re5+ {[%emt 0:01:28] [#]} 59. Kc6 {[%emt 0:00:28]} (59. Kc4 $1 $18 Rc2+ 60. Kb3) 59... Rc2+ $14 {[%emt 0:00:10]} 60. Kb6 {[%emt 0:00:19]} ({Better is} 60. Kd6 $1 $14 Rd2+ 61. Kc6 Rxd7 62. Rxd7) 60... Rb5+ $1 $11 {[%emt 0:00:27][%mdl 64] Decoy. The position is equal.} 61. Kxb5 {[%emt 0:01:36] White wants to mate with g5+.} Rc5+ $1 {[%emt 0:00:03]} 62. Ka6 {[%emt 0:00:10]} Rc6+ $1 {[%emt 0:00:09]} 63. Kb5 {[%emt 0:00:31] White threatens g5+ and mate.} Rc5+ $1 {[%emt 0:00:03]} 64. Kb6 {[%emt 0:00:15] g5+ would kill now.} Rc6+ $1 {[%emt 0:00:04]} 65. Ka7 {[%emt 0:00:05] Threatening mate with g5+.} Rc7+ $1 {[%emt 0:00:04] An interesting game.   Weighted Error Value: White=0.15 (very precise) /Black=0.13 (very precise)} 1/2-1/2

[Event "Charlotte Spring IM-C 2023"]
[Site "Charlotte"]
[Date "2023.03.17"]
[Round "4.3"]
[White "Nguyen, James Le"]
[Black "Georgiev, Vladimir"]
[Result "0-1"]
[ECO "B30"]
[WhiteElo "2100"]
[BlackElo "2404"]
[Annotator "TA"]
[PlyCount "70"]
[EventDate "2023.03.14"]
[EventType "tourn"]
[EventCountry "USA"]
[SourceTitle "playchess.com"]
[Source "ChessBase"]
[SourceQuality "1"]
[TimeControl "5400+30"]

{[%evp 9,70,20,21,21,47,53,48,37,48,47,54,39,53,20,29,37,16,0,0,0,0,-15,16,16,27,20,42,33,61,0,0,0,0,-654,-672,-672,-177,-647,-647,-647,-620,-1054,-1054,-1030,-1029,-970,-979,-916,-291,-1169,-266,-258,-260,-260,-258,-251,-206,-337,-295,-608,-279,-564,-493]} 1. e4 {[%emt 0:00:29]} c5 {[%emt 0:01:04]} 2. Nf3 {[%emt 0:00:22]} Nc6 {[%emt 0:00:04]} 3. Bb5 {[%emt 0:00:07]} e5 {[%emt 0:00:09]} 4. O-O {[%emt 0:05:44]} Bd6 {[%emt 0:03:57]} 5. Re1 {[%emt 0:01:30]} Nge7 {[%emt 0:00:28]} 6. c3 {[%emt 0:00:59] [#] B30: Sicilian: 2...Nc6 3 Bb5, lines without ...g6.} Ng6 $146 {[%emt 0:03:27]} ({Predecessor:} 6... O-O 7. d4 cxd4 8. cxd4 exd4 9. Nxd4 Bc5 10. Be3 Qb6 11. Bxc6 dxc6 12. Nc3 Qc7 {½-½ Petriashvili,N (2428)-Nogerbek,K (2467) Wch U20 59th 2022 (10)}) 7. d4 {[%emt 0:01:28]} cxd4 {[%emt 0:06:54]} 8. cxd4 {[%emt 0:01:06] White is slightly better.} Nxd4 {[%emt 1:18:27]} 9. Nxd4 {[%emt 0:04:35]} exd4 {[%emt 0:00:00]} 10. Qxd4 {[%emt 0:15:32]} Be5 {[%emt 0:00:00]} 11. Qd2 {[%emt 0:08:36]} O-O {[%emt 0:00:00]} 12. Nc3 {[%emt 0:00:44]} d6 {[%emt 0:00:00]} 13. Bc4 {[%emt 0:02:35]} Be6 {[%emt 0:00:00]} (13... Qh4 14. g3 Qg4 15. Be2 Bxc3 16. Qxc3 (16. Qxd6 Qxe4 17. bxc3 Ne5 $17) 16... Qxe4 17. Bf3 $14) 14. Nd5 {[%emt 0:01:42]} Rc8 {[%emt 0:00:00]} (14... Qh4 15. g3 Qg4 16. Re3 $14) 15. Bb3 {[%emt 0:01:38]} Bxd5 {[%emt 0:00:00]} (15... Qh4 16. g3 Qd8 17. f4 $14) 16. Qxd5 {[%emt 0:10:27]} b6 {[%emt 0:00:00]} 17. Rb1 {[%emt 0:02:00]} Qf6 {[%emt 0:00:00]} 18. Rd1 {[%emt 0:05:16]} Nh4 {[%emt 0:00:00]} 19. Be3 {[%emt 0:06:49]} (19. g3 Nf3+ 20. Kg2 Nd4 $15) (19. Qd3 $1 $14) 19... Qg6 $11 {[%emt 0:00:00][%csl Gh4][%cal Rg6g2] Some like it hot} 20. g3 {[%emt 0:00:17] Black must now prevent f4.} Qg4 $40 {[%emt 0:00:00][%mdl 128] Black attacks.} 21. Rdc1 $2 {[%emt 0:04:15][%mdl 8192] [#] Black continues to play with concentration.} (21. Qd3 $11) 21... Qh3 $1 $19 {[%emt 0:00:00][%csl Gh4][%cal Rh3g2]} 22. gxh4 {[%emt 0:01:09][%cal Of2f3]} Bxh2+ {[%emt 0:00:00]} 23. Kh1 {[%emt 0:00:04] Strongly threatening Qf5.} Bf4+ {[%emt 0:00:00]} ({Weaker is} 23... Qxh4 24. Kg2 Be5 25. Qxf7+ Kh8 26. Rxc8 (26. Qxa7 $2 {perishes.} Qxe4+ 27. Kg1 Qg4+ 28. Kf1 Rce8 $19) 26... Qg4+ 27. Kf1 Qxc8 28. Qxa7 $18) 24. Kg1 {[%emt 0:00:21]} Bxe3 {[%emt 0:00:00]} 25. Rxc8 {[%emt 0:05:29]} Qg3+ {[%emt 0:00:00]} 26. Kh1 {[%emt 0:00:03]} Qxh4+ {[%emt 0:00:00]} 27. Kg2 {[%emt 0:00:14]} Qxf2+ {[%emt 0:00:00]} (27... Rxc8 $2 28. fxe3 Rf8 29. Rf1 $18 (29. Qxd6 $2 Qxe4+ 30. Kf2 Qxb1 $19)) 28. Kh3 {[%emt 0:00:15]} Rxc8 $2 {[%emt 0:00:00] [#]} (28... Qf3+ 29. Kh2 Rxc8 30. Qxf7+ {[%mdl 64] Decoy} Qxf7 31. Bxf7+ Kxf7 32. Rf1+ Ke6) 29. Qxd6 $2 {[%emt 0:01:15]} (29. Qf5 Qxf5+ 30. exf5) 29... Qf3+ $2 {[%emt 0:00:00]} (29... Bf4 {[%csl Gf4][%cal Rf2g3]} 30. Qd3 Qh2+ 31. Kg4 h5+ 32. Kf3 Rc5) 30. Qg3 {[%emt 0:00:23]} Qxg3+ {[%emt 0:00:00]} (30... Qxe4 $2 {is the wrong capture.} 31. Rf1 $19) 31. Kxg3 {[%emt 0:00:05]} Rc1 {[%emt 0:00:00]} 32. Rxc1 {[%emt 0:00:15]} Bxc1 {[%emt 0:00:00]} 33. Kf3 {[%emt 0:00:49]} (33. Bc4 $142) 33... Bxb2 {[%emt 0:00:00]} 34. Ke3 $2 {[%emt 0:00:04]} (34. Kf4) 34... Kf8 {[%emt 0:00:00]} (34... Be5 $142 35. Kd3 g6) 35. Kd3 $2 {[%emt 0:00:04]} (35. Kf4) 35... Ke7 {[%emt 0:00:00] An entertaining game by Georgiev.   Weighted Error Value: White=1.00/Black=0.40} 0-1

[Event "Charlotte Spring IM-C 2023"]
[Site "Charlotte"]
[Date "2023.03.17"]
[Round "4.4"]
[White "Jayaraman, Roshan"]
[Black "Chiku-Ratte, Olivier-Kenta"]
[Result "0-1"]
[ECO "E91"]
[WhiteElo "1907"]
[BlackElo "2301"]
[Annotator "TA"]
[PlyCount "98"]
[EventDate "2023.03.14"]
[EventType "tourn"]
[EventCountry "USA"]
[SourceTitle "playchess.com"]
[Source "ChessBase"]
[SourceQuality "1"]
[TimeControl "5400+30"]

{[%evp 18,98,37,33,35,9,2,14,12,5,45,28,34,22,26,22,31,27,23,22,32,26,39,29,33,22,31,23,18,0,0,0,0,-3,-3,-5,0,0,0,-35,-13,-39,-16,-19,-35,-20,0,0,0,0,0,0,0,0,0,0,0,-10,0,0,0,0,0,-9,0,-131,-131,-140,-140,-314,-300,-410,-408,-408,-395,-398,-394,-384,-383,-340,-304,-6183,-5701]} 1. d4 {[%emt 0:09:27][%cal Bd2d4,Bd4d5][%mdl 32]} Nf6 {[%emt 1:31:00]} 2. c4 {[%emt 0:00:27]} c5 {[%emt 0:00:00]} 3. d5 {[%emt 0:00:09]} g6 {[%emt 0:00:00]} 4. Nc3 {[%emt 0:00:11]} Bg7 {[%emt 0:00:00]} 5. e4 {[%emt 0:00:11]} O-O {[%emt 0:00:00]} 6. Nf3 {[%emt 0:00:25]} e6 {[%emt 0:00:00]} 7. Be2 {[%emt 0:02:53]} exd5 {[%emt 0:00:00]} 8. exd5 {[%emt 0:01:14]} Re8 {[%emt 0:00:00]} 9. O-O {[%emt 0:00:12]} d6 {[%emt 0:00:00]} 10. Re1 {[%emt 0:11:26]} Bf5 {[%emt 0:00:00] E91: King's Indian: Classical: 6 Be2, unusual replies including 6...c5 and 6...Bg4.} 11. Bd3 {[%emt 0:00:52] [#] aiming for Bxf5.} Rxe1+ {[%emt 0:00:00]} 12. Nxe1 {[%emt 0:00:10]} Bxd3 {[%emt 0:00:00] The position is equal.} 13. Nxd3 {[%emt 0:00:26] [#]} Na6 $146 {[%emt 0:00:00]} ({Predecessor:} 13... Nbd7 14. Bf4 Nb6 15. b3 Nh5 16. Bd2 {½-½ Kierzek,M (2234)-Werner,C (2330) Wch Seniors 65 25th 2015 (11)}) 14. Bg5 {[%emt 0:08:11]} h6 {[%emt 0:00:00]} 15. Bh4 {[%emt 0:00:10]} Nb4 {[%emt 0:00:00]} 16. Ne1 {[%emt 0:10:42]} Qe7 {[%emt 0:00:00]} 17. a3 {[%emt 0:00:20]} Na6 {[%emt 0:00:00]} 18. Nd3 {[%emt 0:06:06]} Re8 {[%emt 0:00:00]} 19. f3 {[%emt 0:08:26]} Nb8 {[%emt 0:00:00]} 20. Qc2 {[%emt 0:05:29]} Qd8 {[%emt 0:00:00]} 21. Re1 {[%emt 0:00:34]} Rxe1+ {[%emt 0:00:00]} 22. Bxe1 {[%emt 0:00:39]} a6 {[%emt 0:00:00]} 23. b4 {[%emt 0:09:18]} cxb4 {[%emt 0:03:29]} 24. axb4 {[%emt 0:00:09]} b5 {[%emt 0:00:03]} 25. Qb3 {[%emt 0:01:01]} bxc4 {[%emt 0:01:06]} 26. Qxc4 {[%emt 0:00:10]} Nfd7 {[%emt 0:07:52]} 27. Na4 {[%emt 0:02:29]} Qe8 {[%emt 0:00:00]} 28. Bc3 {[%emt 0:08:57]} Nf6 {[%emt 0:00:00]} (28... Qe3+ {looks sharper.} 29. Kf1 Bxc3 30. Nxc3 Nb6) 29. Bxf6 {[%emt 0:01:55]} Bxf6 {[%emt 0:00:00]} 30. Nc3 {[%emt 0:00:13]} Qe3+ {[%emt 0:00:00]} 31. Kf1 $1 {[%emt 0:00:30]} Bxc3 {[%emt 0:00:14]} 32. Qxc3 $11 {[%emt 0:00:10][%mdl 4096] Endgame KQN-KQN} Nd7 {[%emt 0:00:09]} 33. Qc8+ {[%emt 0:01:36]} Kg7 {[%emt 0:00:24]} 34. Qxa6 {[%emt 0:00:22]} Qd4 {[%emt 0:00:51]} 35. Qa3 {[%emt 0:01:04]} Qc4 {[%emt 0:00:33][%cal Od7e5]} 36. Ke1 {[%emt 0:02:07]} Nb6 {[%emt 0:01:22]} 37. Kd2 {[%emt 0:01:44]} Qxd5 {[%emt 0:01:01]} 38. Qc3+ {[%emt 0:00:21]} Kg8 {[%emt 0:00:08]} 39. Kc2 {[%emt 0:01:19]} Nc4 {[%emt 0:00:45]} 40. Kb1 {[%emt 0:00:20]} Ne3 {[%emt 0:00:40]} 41. Ne1 {[%emt 0:02:26]} (41. Nf2 $1 $11 {remains equal.} Nc4 42. Kc2) 41... Qd1+ $17 {[%emt 0:00:27]} 42. Qc1 {[%emt 0:00:21] [#] Strongly threatening Qxd1.} Qe2 {[%emt 0:00:23] Black is much more active.} 43. g3 $2 {[%emt 0:01:46] Now White is beyond hope.} (43. Nc2 $17 {is a better defense.} Nxg2 44. Qxh6) 43... Nc4 $19 {[%emt 0:00:28]} 44. Nc2 {[%emt 0:03:06]} Qxf3 {[%emt 0:00:11]} 45. Ka2 {[%emt 0:00:43] Wards off Qb3+} Qc3 {[%emt 0:00:31] Repels Na3. White must now prevent ...d5.} 46. Qb1 {[%emt 0:00:25]} Nd2 {[%emt 0:00:14] Against Qb3} 47. Qb2 {[%emt 0:00:13]} Qc4+ {[%emt 0:00:03]} 48. Ka1 {[%emt 0:00:14]} Qa6+ {[%emt 0:00:37]} 49. Qa3 $2 {[%emt 0:00:23]} (49. Qa2 Qf1+ 50. Kb2) 49... Qf1+ {[%emt 0:00:08] Weighted Error Value: White=0.39/Black=0.04 (flawless)} 0-1

[Event "Charlotte Spring IM-C 2023"]
[Site "Charlotte"]
[Date "2023.03.17"]
[Round "4.5"]
[White "Sriniaiyer, Sudarshan"]
[Black "Vanapalli, Vishnu"]
[Result "0-1"]
[ECO "A33"]
[WhiteElo "2186"]
[BlackElo "2226"]
[Annotator "TA"]
[PlyCount "100"]
[EventDate "2023.03.14"]
[EventType "tourn"]
[EventCountry "USA"]
[SourceTitle "playchess.com"]
[Source "ChessBase"]
[SourceQuality "1"]
[TimeControl "5400+30"]

{[%evp 10,100,10,7,31,14,18,13,27,0,7,0,0,0,0,0,0,0,2,0,0,0,0,0,0,0,0,0,0,-4,0,-7,0,0,0,0,0,-14,0,-58,-66,-104,-104,-91,-90,-125,-132,-129,-132,-131,-131,-131,-130,-115,-122,-132,-138,-236,-235,-290,-295,-295,-295,-295,-295,-314,-298,-434,-425,-451,-414,-1587,-1576,-1431,-1443,-2397,-1952,-1964,-1906,-1571,-1374,-6776,-5823,-29974,-29975,-29974,-29975,-29978,-29979,-29979,-29979,-29992,-29993]} 1. d4 {[%emt 0:03:29]} Nf6 {[%emt 0:00:08]} 2. c4 {[%emt 0:00:08]} c5 {[%emt 0:00:06]} 3. Nf3 {[%emt 0:00:50]} cxd4 {[%emt 0:00:08]} 4. Nxd4 {[%emt 0:00:02]} Nc6 {[%emt 1:32:08]} 5. Nc3 {[%emt 0:05:17]} e6 {[%emt 0:00:00]} 6. Bf4 {[%emt 1:23:44][%cal Bc1f4,Bf4g3,Bg3h4][%mdl 32]} d6 {[%emt 0:01:00] [#] ...Nxd4 is the strong threat. A33: Symmetrical English: 2 Nf3 Nf6 3 d4 cxd4 4 Nxd4 e6 5 Nc3 Nc6.} 7. Nxc6 {[%emt 0:00:00]} bxc6 {[%emt 0:00:00]} 8. e4 {[%emt 0:00:00]} e5 {[%emt 0:00:00] [#] The position is equal.} 9. Bg3 $146 {[%emt 0:01:30]} ({Predecessor:} 9. Bd2 Be7 10. Be2 O-O 11. O-O Be6 12. Qc2 Rc8 13. Rfd1 d5 14. exd5 cxd5 15. cxd5 Nxd5 {0-1 Nenezic,M (2528)-Ivanisevic,I (2557) SRB-ch Blitz 2022 (5)}) 9... Qa5 {[%emt 0:01:30]} 10. Bd3 {[%emt 0:00:00]} Rb8 {[%emt 0:00:00]} 11. Rb1 {[%emt 0:01:00]} Be7 {[%emt 0:00:00]} 12. O-O {[%emt 0:00:00]} Be6 {[%emt 0:01:30]} 13. a3 {[%emt 0:00:00]} O-O {[%emt 0:00:00]} 14. Bh4 {[%emt 0:00:00]} Rfd8 {[%emt 0:00:00]} 15. Qc1 {[%emt 0:00:00]} Qa6 {[%emt 0:00:00]} 16. b3 {[%emt 0:02:30]} h6 {[%emt 0:02:00]} 17. Be2 {[%emt 0:00:00]} Qb7 {[%emt 0:00:30][%cal Of6e4]} 18. Bxf6 {[%emt 0:00:00]} Bxf6 {[%emt 0:00:00]} 19. b4 {[%emt 0:00:00]} Bg5 {[%emt 0:00:00]} 20. Qc2 {[%emt 0:00:00]} Qa6 {[%emt 0:00:00]} 21. Na4 {[%emt 0:00:00]} Qc8 {[%emt 0:00:00]} 22. Rfd1 {[%emt 0:00:00]} g6 {[%emt 0:00:00]} 23. Nc3 {[%emt 0:00:00]} Rd7 {[%emt 0:00:00]} 24. b5 {[%emt 0:00:00]} (24. g3 $11) 24... cxb5 $15 {[%emt 0:00:00]} 25. Rxb5 {[%emt 0:00:00] Black keeps a firm grip on the game.} Rxb5 {[%emt 0:00:00]} 26. Nxb5 {[%emt 0:00:00]} Qc5 {[%emt 0:00:00]} 27. Qa4 {[%emt 0:00:00]} Bd8 {[%emt 0:00:00][%cal Bg5d8,Bd8b6,Bb6c5][%mdl 32]} 28. Qb4 {[%emt 0:00:00]} Bb6 {[%emt 0:00:00]} 29. Qxc5 {[%emt 0:00:33]} Bxc5 {[%emt 0:00:00]} ({And not} 29... dxc5 30. Rxd7 Bxd7 31. Bd1 $15) 30. a4 {[%emt 0:00:12]} a6 {[%emt 0:00:00]} 31. Nc3 {[%emt 0:00:02]} Bd4 $36 {[%emt 0:00:00][%mdl 2048] Keeping White busy. A strong pair of Bishops.} 32. Nd5 {[%emt 0:01:18] [#] aiming for Nf6+.} Rb7 {[%emt 0:00:00]} 33. c5 {[%emt 0:00:36]} (33. a5 $17) 33... Rb2 $19 {[%emt 0:00:54]} (33... Bxc5 34. Bxa6 Rb2 35. Rf1) 34. Bxa6 {[%emt 0:00:33]} Bxf2+ {[%emt 0:00:24]} 35. Kh1 {[%emt 0:00:30]} Bxd5 {[%emt 0:01:46]} ({Worse is} 35... dxc5 36. Bc4 $17) 36. exd5 {[%emt 0:00:51]} Bxc5 {[%emt 0:00:05][%mdl 4096] Endgame KRB-KRB} 37. g3 {[%emt 0:01:14]} Ra2 {[%emt 0:01:07][%cal Of7f5]} 38. Bb5 {[%emt 0:00:06]} (38. h4 {was called for.}) 38... f5 {[%emt 0:01:32]} 39. Re1 {[%emt 0:00:15]} Kg7 {[%emt 0:00:43]} 40. Re2 {[%emt 0:00:19]} (40. h4 $142) 40... Rxe2 {[%emt 0:01:02]} 41. Bxe2 {[%emt 0:00:02] KB-KB} Bb6 {[%emt 0:00:31]} 42. h4 {[%emt 0:04:11]} e4 {[%emt 0:00:29]} 43. Kg2 {[%emt 0:02:00]} Kf6 {[%emt 0:04:27]} 44. Bb5 {[%emt 0:01:18]} g5 {[%emt 0:00:00]} 45. hxg5+ {[%emt 0:00:00]} hxg5 {[%emt 0:00:00][%cal Bh6g5,Bg5f4,Bf4f3][%mdl 32] ...Ke5 would be deadly.} 46. Kf1 {[%emt 0:00:20]} Ke5 {[%emt 0:01:30] Black mates.} 47. Bd7 {[%emt 0:01:10]} f4 {[%emt 0:00:00]} 48. gxf4+ {[%emt 0:00:00]} gxf4 {[%emt 0:00:00]} 49. Be6 {[%emt 0:00:00]} f3 {[%emt 0:00:00]} 50. Ke1 {[%emt 0:00:32]} Ba5+ {[%emt 0:00:00] Weighted Error Value: White=0.67/Black=0.02 (flawless)} 0-1